[Event "LJ Slovak Open 2022"]
[Site "Liptovsky Jan"]
[Date "2022.06.25"]
[Round "5.40"]
[White "Recky, Norbert"]
[Black "Hudak, Michal"]
[Result "1/2-1/2"]
[ECO "B41"]
[WhiteElo "1755"]
[BlackElo "1169"]
[Annotator "NA RC"]
[PlyCount "49"]
[EventDate "2022.06.23"]
[EventType "swiss"]
[EventCountry "SVK"]
[SourceTitle "playchess.com"]
[Source "ChessBase"]
[SourceQuality "1"]
[TimeControl "3600+30"]

1. e4 {[%emt 0:00:06]} c5 {[%emt 0:00:30]} 2. Nf3 {[%emt 0:00:08]} e6 {[%emt 0:00:30]} 3. d4 {[%emt 0:00:08]} cxd4 {[%emt 0:00:16]} 4. Nxd4 {[%emt 0:00:09]} a6 {[%emt 0:00:19]} 5. Be2 {[%emt 0:01:16]} Nf6 {[%emt 0:00:38]} 6. e5 {[%emt 0:02:26]} Qa5+ {[%emt 0:00:13]} 7. Nc3 {[%emt 0:01:15]} Qxe5 {[%emt 0:00:34]} 8. O-O {[%emt 0:00:40]} Bc5 {[%emt 0:00:54]} 9. Nb3 {[%emt 0:00:54]} Ba7 {[%emt 0:01:36]} 10. Bf3 {[%emt 0:01:46]} d5 {[%emt 0:00:55]} 11. Re1 {[%emt 0:00:57]} Qc7 {[%emt 0:02:06]} 12. Bxd5 {[%emt 0:02:09]} O-O {[%emt 0:00:54]} 13. Bf3 {[%emt 0:01:15]} Nc6 {[%emt 0:01:38]} 14. Bg5 {[%emt 0:01:18]} Ne8 {[%emt 0:03:27]} 15. Qe2 {[%emt 0:04:03]} b5 {[%emt 0:02:13]} 16. Bxc6 {[%emt 0:05:47]} Qxc6 {[%emt 0:00:34]} 17. Qe4 {[%emt 0:00:06]} Qxe4 {[%emt 0:01:03]} 18. Nxe4 {[%emt 0:00:38]} f6 {[%emt 0:01:11]} 19. Be3 {[%emt 0:01:22]} Bxe3 {[%emt 0:01:49]} 20. Rxe3 {[%emt 0:01:01]} Nc7 {[%emt 0:01:28]} 21. Nec5 {[%emt 0:02:04]} e5 {[%emt 0:00:20]} 22. Rd1 {[%emt 0:01:50]} Bf5 {[%emt 0:00:36]} 23. c3 {[%emt 0:00:57]} Rfd8 {[%emt 0:00:18]} 24. Ree1 {[%emt 0:01:33]} Kf8 {[%emt 0:14:32]} 25. Na5 {[%emt 0:00:55]} 1/2-1/2

[Event "LJ Slovak Open 2022"]
[Site "Liptovsky Jan"]
[Date "2022.06.25"]
[Round "5.41"]
[White "Sokolovsky, Jakub"]
[Black "Szabo, Marian"]
[Result "1-0"]
[ECO "A42"]
[WhiteElo "1613"]
[BlackElo "1467"]
[Annotator "NA RC"]
[PlyCount "47"]
[EventDate "2022.06.23"]
[EventType "swiss"]
[EventCountry "SVK"]
[SourceTitle "playchess.com"]
[Source "ChessBase"]
[SourceQuality "1"]
[TimeControl "3600+30"]

1. e4 {[%emt 0:01:43]} e6 {[%emt 0:00:10]} 2. d4 {[%emt 0:00:10]} g6 {[%emt 0:00:06]} 3. c4 {[%emt 0:00:28]} Bg7 {[%emt 0:00:22]} 4. Nc3 {[%emt 0:00:16]} d6 {[%emt 0:00:05]} 5. Nf3 {[%emt 0:00:41]} Nd7 {[%emt 0:00:17]} 6. Bg5 {[%emt 0:01:37]} Bf6 {[%emt 0:00:28]} 7. Bxf6 {[%emt 0:00:45]} Ngxf6 {[%emt 0:00:21]} 8. Be2 {[%emt 0:01:07]} b6 {[%emt 0:00:14]} 9. h3 {[%emt 0:03:36]} Bb7 {[%emt 0:00:12]} 10. e5 {[%emt 0:00:45]} Ne4 {[%emt 0:01:36]} 11. Nxe4 {[%emt 0:02:38]} Bxe4 {[%emt 0:00:07]} 12. O-O {[%emt 0:00:46]} O-O {[%emt 0:03:02]} 13. Re1 {[%emt 0:03:41]} Rc8 {[%emt 0:08:20]} 14. a4 {[%emt 0:05:30]} a5 {[%emt 0:00:16]} 15. exd6 {[%emt 0:02:08]} cxd6 {[%emt 0:00:22]} 16. b3 {[%emt 0:01:29]} d5 {[%emt 0:00:52]} 17. Bf1 {[%emt 0:01:45]} Qf6 {[%emt 0:00:57]} 18. Nd2 {[%emt 0:01:43]} Qxd4 {[%emt 0:01:41]} 19. Nxe4 {[%emt 0:03:04]} Qxd1 {[%emt 0:00:44]} 20. Raxd1 {[%emt 0:00:08]} Rfd8 {[%emt 0:01:26]} 21. cxd5 {[%emt 0:00:34]} exd5 {[%emt 0:00:19]} 22. Rxd5 {[%emt 0:00:23]} Kg7 {[%emt 0:03:02]} 23. Red1 {[%emt 0:00:22]} Nf6 {[%emt 0:01:59]} 24. Rxd8 {[%emt 0:00:54]} 1-0

[Event "LJ Slovak Open 2022"]
[Site "Liptovsky Jan"]
[Date "2022.06.25"]
[Round "5.42"]
[White "Hlavac, Tomas"]
[Black "Magda, Filip"]
[Result "0-1"]
[ECO "B51"]
[WhiteElo "1409"]
[BlackElo "1624"]
[Annotator "NA RC"]
[PlyCount "112"]
[EventDate "2022.06.23"]
[EventType "swiss"]
[EventCountry "SVK"]
[SourceTitle "playchess.com"]
[Source "ChessBase"]
[SourceQuality "1"]
[TimeControl "3600+30"]

1. e4 {[%emt 0:00:02]} c5 {[%emt 0:00:08]} 2. Nf3 {[%emt 0:00:06]} Nc6 {[%emt 0:00:03]} 3. Bb5 {[%emt 0:00:08]} d6 {[%emt 0:00:19]} 4. Bxc6+ {[%emt 0:00:10]} bxc6 {[%emt 0:00:05]} 5. O-O {[%emt 0:00:10]} Nf6 {[%emt 0:00:29]} 6. Re1 {[%emt 0:00:17]} g6 {[%emt 0:00:39]} 7. d3 {[%emt 0:00:58]} Bg7 {[%emt 0:00:26]} 8. h3 {[%emt 0:00:39]} O-O {[%emt 0:00:22]} 9. Nbd2 {[%emt 0:00:23]} Rb8 {[%emt 0:01:15]} 10. Rb1 {[%emt 0:01:00]} Nd7 {[%emt 0:06:56]} 11. b3 {[%emt 0:02:12]} Ne5 {[%emt 0:03:43]} 12. Nh2 {[%emt 0:04:16]} d5 {[%emt 0:05:03]} 13. f4 {[%emt 0:00:59]} Nd7 {[%emt 0:00:11]} 14. e5 {[%emt 0:00:14]} Nb6 {[%emt 0:00:49]} 15. Ba3 {[%emt 0:03:17]} Nd7 {[%emt 0:01:49]} 16. Ndf3 {[%emt 0:05:16]} Qa5 {[%emt 0:03:52]} 17. Bb2 {[%emt 0:00:34]} Qxa2 {[%emt 0:06:38]} 18. Bc3 {[%emt 0:00:27]} Qa6 {[%emt 0:00:30]} 19. d4 {[%emt 0:03:12]} cxd4 {[%emt 0:03:09]} 20. Bxd4 {[%emt 0:01:08]} c5 {[%emt 0:00:25]} 21. Ra1 {[%emt 0:03:01]} Qb7 {[%emt 0:01:59]} 22. Bf2 {[%emt 0:00:50]} d4 {[%emt 0:01:24]} 23. Qe2 {[%emt 0:00:43]} Nb6 {[%emt 0:02:46]} 24. Ng5 {[%emt 0:02:13]} h6 {[%emt 0:00:53]} 25. Ne4 {[%emt 0:00:35]} Qc7 {[%emt 0:00:53]} 26. Ra5 {[%emt 0:01:27]} Nd5 {[%emt 0:01:42]} 27. Rxc5 {[%emt 0:00:39]} Qb7 {[%emt 0:08:48]} 28. Qd2 {[%emt 0:06:28]} Bf5 {[%emt 0:08:11]} 29. Bxd4 {[%emt 0:00:47]} Nb4 {[%emt 0:01:51]} 30. Ng3 {[%emt 0:08:23]} Bxc2 {[%emt 0:01:12]} 31. Rxc2 {[%emt 0:01:44]} Nxc2 {[%emt 0:01:21]} 32. Qxc2 {[%emt 0:00:06]} Qxb3 {[%emt 0:00:11]} 33. Qf2 {[%emt 0:01:15]} a5 {[%emt 0:00:40]} 34. Ne2 {[%emt 0:01:30]} a4 {[%emt 0:01:11]} 35. Nc3 {[%emt 0:02:27]} Rfc8 {[%emt 0:01:18]} 36. Rb1 {[%emt 0:01:41]} Qxb1+ {[%emt 0:01:43]} 37. Nxb1 {[%emt 0:00:10]} Rxb1+ {[%emt 0:00:04]} 38. Nf1 {[%emt 0:00:15]} Rcc1 {[%emt 0:00:11]} 39. Bb2 {[%emt 0:07:14]} Rxf1+ {[%emt 0:00:24]} 40. Qxf1 {[%emt 0:00:05]} Rxf1+ {[%emt 0:00:05]} 41. Kxf1 {[%emt 0:00:04]} e6 {[%emt 0:00:59]} 42. Ke2 {[%emt 0:00:40]} Bf8 {[%emt 0:00:37]} 43. Kd3 {[%emt 0:00:10]} Bc5 {[%emt 0:00:28]} 44. Bd4 {[%emt 0:01:08]} Bxd4 {[%emt 0:00:45]} 45. Kxd4 {[%emt 0:00:05]} Kg7 {[%emt 0:01:09]} 46. Kc3 {[%emt 0:00:13]} g5 {[%emt 0:00:31]} 47. fxg5 {[%emt 0:01:47]} hxg5 {[%emt 0:00:04]} 48. Kb4 {[%emt 0:00:05]} Kg6 {[%emt 0:00:23]} 49. g4 {[%emt 0:00:14]} f6 {[%emt 0:00:08]} 50. exf6 {[%emt 0:00:06]} Kxf6 {[%emt 0:00:09]} 51. Kxa4 {[%emt 0:00:04]} Ke5 {[%emt 0:00:32]} 52. Kb4 {[%emt 0:00:13]} Kf4 {[%emt 0:00:22]} 53. Kc4 {[%emt 0:01:22]} Kg3 {[%emt 0:00:29]} 54. Kd4 {[%emt 0:00:05]} Kxh3 {[%emt 0:00:06]} 55. Ke5 {[%emt 0:00:09]} Kxg4 {[%emt 0:00:07]} 56. Kxe6 {[%emt 0:00:06]} Kf3 {[%emt 0:00:23]} 0-1

[Event "LJ Slovak Open 2022"]
[Site "Liptovsky Jan"]
[Date "2022.06.25"]
[Round "5.43"]
[White "Sekova, Olivia"]
[Black "Muller, Martin"]
[Result "1-0"]
[ECO "C05"]
[WhiteElo "1708"]
[BlackElo "1476"]
[Annotator "NA RC"]
[PlyCount "75"]
[EventDate "2022.06.23"]
[EventType "swiss"]
[EventCountry "SVK"]
[SourceTitle "playchess.com"]
[Source "ChessBase"]
[SourceQuality "1"]
[TimeControl "3600+30"]

1. e4 {[%emt 0:00:07]} e6 {[%emt 0:00:39]} 2. d4 {[%emt 0:00:19]} d5 {[%emt 0:00:25]} 3. Nd2 {[%emt 0:00:35]} Nf6 {[%emt 0:04:21]} 4. Bd3 {[%emt 0:00:45]} c5 {[%emt 0:07:13]} 5. dxc5 {[%emt 0:01:03]} Nc6 {[%emt 0:01:56]} 6. Ngf3 {[%emt 0:03:13]} dxe4 {[%emt 0:01:31]} 7. Bxe4 {[%emt 0:00:17]} Nxe4 {[%emt 0:00:11]} 8. Nxe4 {[%emt 0:00:06]} Qxd1+ {[%emt 0:00:06]} 9. Kxd1 {[%emt 0:00:07]} Bd7 {[%emt 0:09:11]} 10. Bf4 {[%emt 0:00:45]} f6 {[%emt 0:03:39]} 11. Bd6 {[%emt 0:04:07]} Ne7 {[%emt 0:04:27]} 12. Re1 {[%emt 0:06:34]} Bc6 {[%emt 0:00:12]} 13. Nd4 {[%emt 0:07:31]} Bxe4 {[%emt 0:00:38]} 14. Rxe4 {[%emt 0:00:22]} e5 {[%emt 0:01:09]} 15. Nb5 {[%emt 0:01:36]} Nd5 {[%emt 0:01:14]} 16. c4 {[%emt 0:02:52]} a6 {[%emt 0:00:10]} 17. cxd5 {[%emt 0:00:41]} axb5 {[%emt 0:00:16]} 18. Bxf8 {[%emt 0:00:58]} Rxf8 {[%emt 0:00:11]} 19. f4 {[%emt 0:01:26]} Rd8 {[%emt 0:02:54]} 20. d6 {[%emt 0:00:09]} Kd7 {[%emt 0:00:31]} 21. Kd2 {[%emt 0:06:43]} Rde8 {[%emt 0:02:59]} 22. fxe5 {[%emt 0:01:26]} fxe5 {[%emt 0:00:25]} 23. Rae1 {[%emt 0:00:25]} Rf2+ {[%emt 0:00:44]} 24. R1e2 {[%emt 0:00:15]} Rxe2+ {[%emt 0:01:45]} 25. Kxe2 {[%emt 0:00:22]} Ke6 {[%emt 0:00:46]} 26. Rb4 {[%emt 0:05:59]} b6 {[%emt 0:01:33]} 27. cxb6 {[%emt 0:00:36]} Kxd6 {[%emt 0:00:12]} 28. Rxb5 {[%emt 0:00:11]} Kc6 {[%emt 0:00:29]} 29. Rb3 {[%emt 0:00:22]} Kb7 {[%emt 0:01:07]} 30. Ke3 {[%emt 0:01:11]} Ra8 {[%emt 0:02:01]} 31. a3 {[%emt 0:02:28]} Ra5 {[%emt 0:01:36]} 32. Ke4 {[%emt 0:00:40]} Rc5 {[%emt 0:00:13]} 33. Kd3 {[%emt 0:07:51]} Rd5+ {[%emt 0:02:16]} 34. Ke3 {[%emt 0:02:23]} Rc5 {[%emt 0:00:25]} 35. a4 {[%emt 0:00:40]} Rc4 {[%emt 0:01:13]} 36. a5 {[%emt 0:00:12]} Rd4 {[%emt 0:04:50]} 37. a6+ {[%emt 0:00:29]} Kxa6 {[%emt 0:00:09]} 38. b7 {[%emt 0:00:05]} 1-0

[Event "LJ Slovak Open 2022"]
[Site "Liptovsky Jan"]
[Date "2022.06.25"]
[Round "5.44"]
[White "Freibergs, Filips"]
[Black "Bohacek, Ludovit"]
[Result "1/2-1/2"]
[ECO "A48"]
[WhiteElo "1250"]
[BlackElo "1594"]
[Annotator "NA RC"]
[PlyCount "125"]
[EventDate "2022.06.23"]
[EventType "swiss"]
[EventCountry "SVK"]
[SourceTitle "playchess.com"]
[Source "ChessBase"]
[SourceQuality "1"]
[TimeControl "3600+30"]

1. d4 {[%emt 0:00:43]} Nf6 {[%emt 0:01:05]} 2. Nf3 {[%emt 0:00:30]} g6 {[%emt 0:00:30]} 3. e3 {[%emt 0:00:16]} Bg7 {[%emt 0:00:23]} 4. Nbd2 {[%emt 0:00:11]} d6 {[%emt 0:00:32]} 5. b3 {[%emt 0:00:20]} O-O {[%emt 0:01:29]} 6. Bb2 {[%emt 0:00:31]} Nbd7 {[%emt 0:00:30]} 7. c4 {[%emt 0:01:06]} Re8 {[%emt 0:01:03]} 8. Bd3 {[%emt 0:02:10]} e5 {[%emt 0:00:20]} 9. Qc2 {[%emt 0:00:24]} c5 {[%emt 0:01:51]} 10. O-O {[%emt 0:00:27]} Qc7 {[%emt 0:00:21]} 11. dxe5 {[%emt 0:08:13]} Nxe5 {[%emt 0:00:57]} 12. Nxe5 {[%emt 0:00:28]} dxe5 {[%emt 0:00:42]} 13. Rad1 {[%emt 0:00:16]} Ng4 {[%emt 0:01:02]} 14. h3 {[%emt 0:01:59]} Nh6 {[%emt 0:01:41]} 15. Nf3 {[%emt 0:06:29]} f5 {[%emt 0:01:03]} 16. e4 {[%emt 0:01:49]} Qe7 {[%emt 0:02:24]} 17. exf5 {[%emt 0:01:52]} e4 {[%emt 0:01:57]} 18. fxg6 {[%emt 0:05:51]} hxg6 {[%emt 0:00:32]} 19. Rfe1 {[%emt 0:00:27]} Bf5 {[%emt 0:00:24]} 20. Bxg7 {[%emt 0:06:48]} Kxg7 {[%emt 0:00:30]} 21. Nd2 {[%emt 0:00:55]} Qg5 {[%emt 0:01:07]} 22. Nxe4 {[%emt 0:00:36]} Bxe4 {[%emt 0:01:28]} 23. Rxe4 {[%emt 0:00:35]} Rad8 {[%emt 0:04:43]} 24. Rxe8 {[%emt 0:01:58]} Rxe8 {[%emt 0:01:15]} 25. Qd2 {[%emt 0:00:31]} Qe5 {[%emt 0:00:30]} 26. Bf1 {[%emt 0:01:09]} Nf5 {[%emt 0:00:37]} 27. Qd5 {[%emt 0:01:54]} Nd4 {[%emt 0:01:04]} 28. Qxb7+ {[%emt 0:00:54]} Re7 {[%emt 0:00:34]} 29. Qd5 {[%emt 0:00:13]} Qc7 {[%emt 0:01:16]} 30. Qg5 {[%emt 0:00:18]} Re5 {[%emt 0:00:37]} 31. Qg3 {[%emt 0:00:40]} Qe7 {[%emt 0:01:00]} 32. Rd3 {[%emt 0:01:48]} Re1 {[%emt 0:04:08]} 33. Re3 {[%emt 0:01:20]} Ne2+ {[%emt 0:00:14]} 34. Kh2 {[%emt 0:02:10]} Nxg3 {[%emt 0:01:40]} 35. Rxe7+ {[%emt 0:00:09]} Rxe7 {[%emt 0:00:26]} 36. Kxg3 {[%emt 0:00:03]} a5 {[%emt 0:00:48]} 37. Kf3 {[%emt 0:02:29]} Re1 {[%emt 0:00:54]} 38. Bd3 {[%emt 0:00:34]} Kf6 {[%emt 0:01:00]} 39. h4 {[%emt 0:01:28]} Ra1 {[%emt 0:06:50]} 40. a4 {[%emt 0:00:03]} Ra2 {[%emt 0:00:50]} 41. Be2 {[%emt 0:00:54]} Rb2 {[%emt 0:00:47]} 42. Bd1 {[%emt 0:00:01]} Rd2 {[%emt 0:01:25]} 43. Be2 {[%emt 0:00:05]} Ke5 {[%emt 0:00:28]} 44. Ke3 {[%emt 0:01:05]} Rd4 {[%emt 0:01:05]} 45. g3 {[%emt 0:01:49]} Re4+ {[%emt 0:00:32]} 46. Kd3 {[%emt 0:00:30]} Rd4+ {[%emt 0:00:54]} 47. Kc3 {[%emt 0:00:03]} Ke4 {[%emt 0:00:53]} 48. h5 {[%emt 0:01:21]} gxh5 {[%emt 0:01:55]} 49. Bxh5 {[%emt 0:00:02]} Rd3+ {[%emt 0:00:16]} 50. Kc2 {[%emt 0:00:08]} Rd6 {[%emt 0:00:07]} 51. Be2 {[%emt 0:04:58]} Rf6 {[%emt 0:00:34]} 52. f3+ {[%emt 0:00:30]} Ke3 {[%emt 0:00:20]} 53. Bd1 {[%emt 0:00:21]} Rh6 {[%emt 0:00:49]} 54. g4 {[%emt 0:00:24]} Rh2+ {[%emt 0:00:28]} 55. Kc3 {[%emt 0:00:29]} Rh1 {[%emt 0:00:33]} 56. Kc2 {[%emt 0:00:13]} Rg1 {[%emt 0:01:03]} 57. Kc1 {[%emt 0:01:24]} Kd3 {[%emt 0:00:13]} 58. f4 {[%emt 0:00:08]} Ke4 {[%emt 0:01:56]} 59. f5 {[%emt 0:00:10]} Ke5 {[%emt 0:00:38]} 60. Kd2 {[%emt 0:00:29]} Rg3 {[%emt 0:00:53]} 61. Kc2 {[%emt 0:01:37]} Kf6 {[%emt 0:00:20]} 62. Kd2 {[%emt 0:00:24]} Kg5 {[%emt 0:00:52]} 63. Kc2 {[%emt 0:00:04]} 1/2-1/2

[Event "LJ Slovak Open 2022"]
[Site "Liptovsky Jan"]
[Date "2022.06.25"]
[Round "5.45"]
[White "Carnecky, Michal"]
[Black "Koren, Juraj"]
[Result "0-1"]
[ECO "A22"]
[WhiteElo "1361"]
[BlackElo "1506"]
[Annotator "NA RC"]
[PlyCount "84"]
[EventDate "2022.06.23"]
[EventType "swiss"]
[EventCountry "SVK"]
[SourceTitle "playchess.com"]
[Source "ChessBase"]
[SourceQuality "1"]
[TimeControl "3600+30"]

1. c4 {[%emt 0:00:05]} Nf6 {[%emt 0:05:09]} 2. Nc3 {[%emt 0:00:16]} e5 {[%emt 0:00:24]} 3. a3 {[%emt 0:00:12]} Be7 {[%emt 0:00:25]} 4. d3 {[%emt 0:00:12]} O-O {[%emt 0:00:13]} 5. Nf3 {[%emt 0:00:10]} d6 {[%emt 0:00:22]} 6. g3 {[%emt 0:00:39]} Be6 {[%emt 0:01:05]} 7. Bg2 {[%emt 0:00:28]} Nbd7 {[%emt 0:01:28]} 8. Qc2 {[%emt 0:03:21]} c6 {[%emt 0:02:36]} 9. O-O {[%emt 0:01:30]} d5 {[%emt 0:02:46]} 10. cxd5 {[%emt 0:00:51]} cxd5 {[%emt 0:00:07]} 11. d4 {[%emt 0:02:36]} e4 {[%emt 0:01:55]} 12. Ng5 {[%emt 0:05:23]} Rc8 {[%emt 0:00:23]} 13. Nxe6 {[%emt 0:00:50]} fxe6 {[%emt 0:00:10]} 14. Qd1 {[%emt 0:02:36]} Nb6 {[%emt 0:00:34]} 15. e3 {[%emt 0:02:22]} Nc4 {[%emt 0:01:35]} 16. Qe1 {[%emt 0:02:11]} e5 {[%emt 0:00:14]} 17. b3 {[%emt 0:00:13]} exd4 {[%emt 0:01:03]} 18. bxc4 {[%emt 0:03:33]} dxc3 {[%emt 0:00:07]} 19. cxd5 {[%emt 0:02:04]} Qxd5 {[%emt 0:00:18]} 20. Qd1 {[%emt 0:01:53]} Rfd8 {[%emt 0:02:30]} 21. Qc2 {[%emt 0:02:55]} Qd3 {[%emt 0:01:03]} 22. Ra2 {[%emt 0:00:15]} Rc6 {[%emt 0:02:45]} 23. Qb3+ {[%emt 0:03:29]} Qc4 {[%emt 0:02:24]} 24. Qxc4+ {[%emt 0:00:28]} Rxc4 {[%emt 0:00:12]} 25. Rc2 {[%emt 0:00:05]} b5 {[%emt 0:00:38]} 26. f3 {[%emt 0:01:08]} b4 {[%emt 0:02:10]} 27. axb4 {[%emt 0:00:15]} Bxb4 {[%emt 0:00:05]} 28. Rff2 {[%emt 0:02:47]} Ba5 {[%emt 0:03:23]} 29. h3 {[%emt 0:05:33]} Ra4 {[%emt 0:00:41]} 30. Kh2 {[%emt 0:02:30]} Ra1 {[%emt 0:01:23]} 31. Rf1 {[%emt 0:00:29]} Ra4 {[%emt 0:03:21]} 32. fxe4 {[%emt 0:01:00]} Nxe4 {[%emt 0:00:16]} 33. Rf4 {[%emt 0:00:21]} Nc5 {[%emt 0:00:53]} 34. Rcf2 {[%emt 0:04:20]} Rxf4 {[%emt 0:01:05]} 35. exf4 {[%emt 0:01:20]} Nd3 {[%emt 0:00:44]} 36. Rc2 {[%emt 0:00:23]} Bb4 {[%emt 0:05:31]} 37. Be3 {[%emt 0:01:18]} Ne1 {[%emt 0:01:53]} 38. Re2 {[%emt 0:01:07]} Nxg2 {[%emt 0:02:31]} 39. Bxa7 {[%emt 0:00:17]} Rd2 {[%emt 0:01:35]} 40. Rxg2 {[%emt 0:00:18]} c2 {[%emt 0:03:22]} 41. Be3 {[%emt 0:00:54]} c1=Q {[%emt 0:00:26]} 42. Bxd2 {[%emt 0:00:13]} Bxd2 {[%emt 0:00:14]} 0-1

[Event "LJ Slovak Open 2022"]
[Site "Liptovsky Jan"]
[Date "2022.06.25"]
[Round "5.46"]
[White "Kolibik, Jan"]
[Black "Livnansky, Tomas"]
[Result "1/2-1/2"]
[ECO "E10"]
[WhiteElo "1621"]
[BlackElo "1244"]
[Annotator "NA RC"]
[PlyCount "52"]
[EventDate "2022.06.23"]
[EventType "swiss"]
[EventCountry "SVK"]
[SourceTitle "playchess.com"]
[Source "ChessBase"]
[SourceQuality "1"]
[TimeControl "3600+30"]

1. Nf3 {[%emt 0:00:25]} d5 {[%emt 0:00:16]} 2. d4 {[%emt 0:00:26]} Nc6 {[%emt 0:00:21]} 3. e3 {[%emt 0:00:34]} Nf6 {[%emt 0:01:06]} 4. c4 {[%emt 0:01:14]} e6 {[%emt 0:02:17]} 5. a3 {[%emt 0:01:12]} Bd6 {[%emt 0:02:45]} 6. c5 {[%emt 0:00:38]} Be7 {[%emt 0:00:08]} 7. Bb5 {[%emt 0:02:03]} Bd7 {[%emt 0:00:56]} 8. O-O {[%emt 0:00:21]} a6 {[%emt 0:00:09]} 9. Bxc6 {[%emt 0:00:28]} Bxc6 {[%emt 0:00:19]} 10. Nc3 {[%emt 0:00:16]} O-O {[%emt 0:02:50]} 11. b4 {[%emt 0:01:35]} b6 {[%emt 0:03:05]} 12. cxb6 {[%emt 0:01:12]} cxb6 {[%emt 0:00:43]} 13. Bb2 {[%emt 0:00:09]} Bb7 {[%emt 0:00:44]} 14. Rc1 {[%emt 0:01:57]} Rc8 {[%emt 0:00:13]} 15. Nd2 {[%emt 0:03:20]} b5 {[%emt 0:00:17]} 16. Ne2 {[%emt 0:00:59]} Qd7 {[%emt 0:04:28]} 17. Qb3 {[%emt 0:01:36]} Rc6 {[%emt 0:01:09]} 18. Rxc6 {[%emt 0:00:16]} Qxc6 {[%emt 0:00:21]} 19. Rc1 {[%emt 0:00:11]} Qd7 {[%emt 0:00:02]} 20. Nf4 {[%emt 0:00:58]} Rc8 {[%emt 0:01:52]} 21. Nd3 {[%emt 0:01:36]} Rxc1+ {[%emt 0:01:15]} 22. Nxc1 {[%emt 0:00:41]} Qc7 {[%emt 0:11:12]} 23. Qc3 {[%emt 0:00:26]} Bd6 {[%emt 0:00:22]} 24. Qxc7 {[%emt 0:00:13]} Bxc7 {[%emt 0:07:43]} 25. Nd3 {[%emt 0:00:41]} Kf8 {[%emt 0:00:30]} 26. f3 {[%emt 0:00:19]} Ke7 {[%emt 0:01:11]} 1/2-1/2

[Event "LJ Slovak Open 2022"]
[Site "Liptovsky Jan"]
[Date "2022.06.25"]
[Round "5.47"]
[White "Dicer, Juraj"]
[Black "Kovacik, Oliver"]
[Result "1-0"]
[ECO "B06"]
[WhiteElo "1562"]
[BlackElo "1331"]
[Annotator "NA RC"]
[PlyCount "115"]
[EventDate "2022.06.23"]
[EventType "swiss"]
[EventCountry "SVK"]
[SourceTitle "playchess.com"]
[Source "ChessBase"]
[SourceQuality "1"]
[TimeControl "3600+30"]

1. d4 {[%emt 0:00:03]} g6 {[%emt 0:00:11]} 2. e4 {[%emt 0:00:09]} Bg7 {[%emt 0:00:07]} 3. f4 {[%emt 0:00:17]} Nf6 {[%emt 0:00:17]} 4. Bd3 {[%emt 0:00:30]} b6 {[%emt 0:01:04]} 5. e5 {[%emt 0:01:00]} Nd5 {[%emt 0:00:31]} 6. c4 {[%emt 0:00:55]} Nb4 {[%emt 0:00:09]} 7. Be4 {[%emt 0:00:27]} c6 {[%emt 0:00:40]} 8. a3 {[%emt 0:01:10]} N4a6 {[%emt 0:01:32]} 9. Nf3 {[%emt 0:00:19]} d5 {[%emt 0:00:23]} 10. cxd5 {[%emt 0:00:41]} cxd5 {[%emt 0:00:10]} 11. Bd3 {[%emt 0:00:58]} Nc6 {[%emt 0:01:09]} 12. Qc2 {[%emt 0:00:47]} Qc7 {[%emt 0:01:19]} 13. b4 {[%emt 0:01:22]} Nd8 {[%emt 0:01:51]} 14. Nc3 {[%emt 0:02:30]} Qd7 {[%emt 0:02:25]} 15. Bb5 {[%emt 0:00:25]} Nc6 {[%emt 0:00:18]} 16. Qa4 {[%emt 0:00:30]} Nab8 {[%emt 0:00:22]} 17. Be3 {[%emt 0:02:44]} a6 {[%emt 0:00:21]} 18. Bxc6 {[%emt 0:02:35]} Nxc6 {[%emt 0:00:37]} 19. Rc1 {[%emt 0:00:42]} Bb7 {[%emt 0:00:54]} 20. O-O {[%emt 0:01:48]} b5 {[%emt 0:01:52]} 21. Qb3 {[%emt 0:00:41]} e6 {[%emt 0:01:34]} 22. a4 {[%emt 0:00:34]} Ne7 {[%emt 0:03:44]} 23. axb5 {[%emt 0:00:37]} axb5 {[%emt 0:00:30]} 24. Ra1 {[%emt 0:02:16]} O-O {[%emt 0:00:31]} 25. Ra5 {[%emt 0:01:00]} Bc6 {[%emt 0:01:30]} 26. Rfa1 {[%emt 0:00:29]} Rab8 {[%emt 0:00:38]} 27. Ra7 {[%emt 0:01:03]} Rb7 {[%emt 0:00:39]} 28. R7a5 {[%emt 0:01:43]} Nf5 {[%emt 0:02:41]} 29. Bf2 {[%emt 0:01:03]} f6 {[%emt 0:01:22]} 30. g4 {[%emt 0:02:49]} Nh6 {[%emt 0:01:57]} 31. exf6 {[%emt 0:01:34]} Rxf6 {[%emt 0:01:05]} 32. g5 {[%emt 0:00:14]} Rxf4 {[%emt 0:00:21]} 33. gxh6 {[%emt 0:00:27]} Rxf3 {[%emt 0:00:52]} 34. hxg7 {[%emt 0:00:31]} Kxg7 {[%emt 0:00:13]} 35. Qc2 {[%emt 0:04:22]} e5 {[%emt 0:01:45]} 36. Bg3 {[%emt 0:01:23]} exd4 {[%emt 0:00:39]} 37. Nd1 {[%emt 0:03:15]} Qh3 {[%emt 0:02:53]} 38. Qg2 {[%emt 0:00:13]} Qf5 {[%emt 0:00:27]} 39. Ra7 {[%emt 0:01:01]} Rf7 {[%emt 0:00:27]} 40. Rxf7+ {[%emt 0:00:14]} Kxf7 {[%emt 0:00:43]} 41. Ra7+ {[%emt 0:01:26]} Kg8 {[%emt 0:00:40]} 42. Qe2 {[%emt 0:01:19]} d3 {[%emt 0:00:45]} 43. Qg2 {[%emt 0:02:57]} d2 {[%emt 0:00:42]} 44. Ra6 {[%emt 0:02:13]} Bb7 {[%emt 0:01:38]} 45. Ra7 {[%emt 0:00:57]} Bc6 {[%emt 0:00:15]} 46. Rc7 {[%emt 0:01:36]} Qf6 {[%emt 0:01:29]} 47. Qe2 {[%emt 0:00:13]} d4 {[%emt 0:00:55]} 48. Rc8+ {[%emt 0:00:44]} Kf7 {[%emt 0:00:28]} 49. Nf2 {[%emt 0:03:17]} d3 {[%emt 0:02:03]} 50. Qxd2 {[%emt 0:01:53]} Qa1+ {[%emt 0:01:35]} 51. Nd1 {[%emt 0:02:55]} Qd4+ {[%emt 0:00:24]} 52. Nf2 {[%emt 0:00:50]} Qa1+ {[%emt 0:00:20]} 53. Qd1 {[%emt 0:00:49]} Qf6 {[%emt 0:00:57]} 54. Qb3+ {[%emt 0:00:58]} Ke7 {[%emt 0:00:54]} 55. Rc7+ {[%emt 0:00:52]} Kd8 {[%emt 0:00:44]} 56. Qg8+ {[%emt 0:01:26]} Qf8 {[%emt 0:00:35]} 57. Qxf8+ {[%emt 0:00:42]} Rxf8 {[%emt 0:00:07]} 58. Rxc6 {[%emt 0:00:08]} 1-0